{"text_format":"3","workbook":"xlsx","n_sheets":3,"sheets":["Start","Gavebudget og sporing","Data"],"not_rendered":{"charts":1,"defined_names":1},"read":"whole","date_system":"1900"}

{"sheet":"Start","index":0,"n_rows":7,"n_cols":2,"rows_kept":7}
[null,"Om skabelonen"]
[null,"Brug denne skabelon til at logge dine gavekøb og spore dem i forhold til budgettet."]
[null,"Angiv navnene på familie og venner, gaveelementer, budgetterede og brugte beløb samt noter i tabellen, og vælg begivenhed og begivenhedsmåned."]
[null,"Det månedlige oversigtsdiagram opdateres automatisk."]
[null,"Bemærk: "]
[null,"Der er angivet yderligere instruktioner i kolonne A i regnearket GAVEBUDGET OG SPORING. Denne tekst er skjult med vilje. Du kan fjerne tekst ved at markere kolonne A og derefter vælge Slet. For ikke længere at skjule tekst skal du markere kolonne A og derefter ændre skriftfarven."]
[null,"Hvis du vil vide mere om tabeller, skal du trykke på SHIFT og derefter F10, mens du er i en tabel, vælge indstillingen TABEL og derefter vælge ALTERNATIV TEKST."]

{"sheet":"Gavebudget og sporing","index":1,"n_rows":10,"n_cols":13,"rows_kept":10,"merged":[[0,1,0,4],[0,5,0,12],[1,1,1,2],[2,1,2,12],[3,1,3,3]]}
["Opret et personligt gavebudget og en sporingsfunktion i dette regneark. Titlen på regnearket er i cellen til højre og tip i celle F1. I cellerne i denne kolonne vises en udførlig vejledning i, hvordan man bruger dette regneark.","Gavebudget og sporing",{"$nulls":3},"Udfyld så meget som muligt i begyndelsen af hvert nyt år. Angiv navnene på familie og venner, vælg gavebegivenhed, vælg begivenhedsmåned, og skriv, hvor meget du vil bruge. Hver person kan blive vist flere gange i tabellen for hver anden lejlighed (fødselsdag, ferie, polterabend osv.)."]
["Månedlig oversigt er i cellen til højre og tip i celle D2.","Månedlig oversigt",null,"Brug grafen til at se på de kommende måneder for at planlægge forud. Log dine køb for at spore dem i forhold til dit budget."]
["Søjlediagram for budgetterede beløb med overlejring af kurvediagram for brugt beløb er i cellen til højre.","Søjlediagram for budgetterede beløb med overlejring af kurvediagram for brugt beløb i denne celle."]
["Gavebudgettet og sporingsmærkaten er i cellen til højre.","Gavebudget og sporing"]
["Angiv oplysninger i tabellen Budgetsporing, der begynder i cellen til højre.","Hvem","Lejlighed","Måned","Beløb\nbudgetterede","Beløb\nbrugt","Gave","Link til gave","I butik/\nOnline","Købt?","Pakket ind?","Leveret?","Noter"]
[null,"Navn 1","Fødselsdage","Juni",{"v":50,"d":"kr. 50"},{"v":30,"d":"kr. 30"},"Sko","Sælger","Online","Ja","Nej","Nej","16/6, filmbilletter"]
[null,"Navn 2","Jubilæer","April",{"v":20,"d":"kr. 20"},{"v":20,"d":"kr. 20"},"En kat","Sælger","I butik","Nej","Nej","Nej","Han omtalte, at han kan lide hunde"]
[null,"Navn 3","Helligdage","Juli",{"v":50,"d":"kr. 50"},{"v":70,"d":"kr. 70"},"Hovedtelefoner","Sælger","Online","Nej","Nej","Nej","Kollegieting"]
[null,"Navn 4","Fødselsdage","Januar",{"v":20,"d":"kr. 20"},{"v":30,"d":"kr. 30"},"Spil","Sælger","I butik","Ja","Ja","Ja"]
[null,"Navn 5","Bryllupper","Juni",{"v":100,"d":"kr. 100"},{"v":150,"d":"kr. 150"},"Krystalvase","Sælger","I butik","Ja","Ja","Nej"]

{"sheet":"Data","index":2,"n_rows":13,"n_cols":8,"rows_kept":13,"hidden":true}
["Lejligheder",null,"Dato","Dato","Budgetteret beløb\nFødselsdage","Budgetteret beløb\nHelligdage","Budgetteret beløb\nAndet","Forbrugt beløb"]
["Fødselsdage",null,"Januar","Jan",{"$f":"SUMIFS(BudgetTracker[Beløb\nbudgetterede],BudgetTracker[Måned],\"Januar\",BudgetTracker[Lejlighed],\"Fødselsdage\")","v":{"v":20,"d":"kr. 20"}},{"$f":"SUMIFS(BudgetTracker[Beløb\nbudgetterede],BudgetTracker[Måned],\"Januar\",BudgetTracker[Lejlighed],\"Helligdage\")","v":{"v":0,"d":"kr. 0"}},{"$f":"SUMIFS(BudgetTracker[Beløb\nbudgetterede],BudgetTracker[Måned],\"Januar\",BudgetTracker[Lejlighed],\"<>Helligdage\",BudgetTracker[Lejlighed],\"<>Fødselsdage\")","v":{"v":0,"d":"kr. 0"}},{"$f":"SUMIFS(BudgetTracker[Beløb\nbrugt],BudgetTracker[Måned],\"Januar\")","v":{"v":30,"d":"kr. 30"}}]
["Helligdage",null,"Februar","Feb",{"$f":"SUMIFS(BudgetTracker[Beløb\nbudgetterede],BudgetTracker[Måned],\"Februar\",BudgetTracker[Lejlighed],\"Fødselsdage\")","v":{"v":0,"d":"kr. 0"}},{"$f":"SUMIFS(BudgetTracker[Beløb\nbudgetterede],BudgetTracker[Måned],\"Februar\",BudgetTracker[Lejlighed],\"Helligdage\")","v":{"v":0,"d":"kr. 0"}},{"$f":"SUMIFS(BudgetTracker[Beløb\nbudgetterede],BudgetTracker[Måned],\"Februar\",BudgetTracker[Lejlighed],\"<>Helligdage\",BudgetTracker[Lejlighed],\"<>Fødselsdage\")","v":{"v":0,"d":"kr. 0"}},{"$f":"SUMIFS(BudgetTracker[Beløb\nbrugt],BudgetTracker[Måned],\"Februar\")","v":{"v":0,"d":"kr. 0"}}]
["Jubilæer",null,"Marts","Mar",{"$f":"SUMIFS(BudgetTracker[Beløb\nbudgetterede],BudgetTracker[Måned],\"Marts\",BudgetTracker[Lejlighed],\"Fødselsdage\")","v":{"v":0,"d":"kr. 0"}},{"$f":"SUMIFS(BudgetTracker[Beløb\nbudgetterede],BudgetTracker[Måned],\"Marts\",BudgetTracker[Lejlighed],\"Helligdage\")","v":{"v":0,"d":"kr. 0"}},{"$f":"SUMIFS(BudgetTracker[Beløb\nbudgetterede],BudgetTracker[Måned],\"Marts\",BudgetTracker[Lejlighed],\"<>Helligdage\",BudgetTracker[Lejlighed],\"<>Fødselsdage\")","v":{"v":0,"d":"kr. 0"}},{"$f":"SUMIFS(BudgetTracker[Beløb\nbrugt],BudgetTracker[Måned],\"Marts\")","v":{"v":0,"d":"kr. 0"}}]
["Bryllupper",null,"April","Apr",{"$f":"SUMIFS(BudgetTracker[Beløb\nbudgetterede],BudgetTracker[Måned],\"April\",BudgetTracker[Lejlighed],\"Fødselsdage\")","v":{"v":0,"d":"kr. 0"}},{"$f":"SUMIFS(BudgetTracker[Beløb\nbudgetterede],BudgetTracker[Måned],\"April\",BudgetTracker[Lejlighed],\"Helligdage\")","v":{"v":0,"d":"kr. 0"}},{"$f":"SUMIFS(BudgetTracker[Beløb\nbudgetterede],BudgetTracker[Måned],\"April\",BudgetTracker[Lejlighed],\"<>Helligdage\",BudgetTracker[Lejlighed],\"<>Fødselsdage\")","v":{"v":20,"d":"kr. 20"}},{"$f":"SUMIFS(BudgetTracker[Beløb\nbrugt],BudgetTracker[Måned],\"April\")","v":{"v":20,"d":"kr. 20"}}]
["Polterabender",null,"Maj","Maj",{"$f":"SUMIFS(BudgetTracker[Beløb\nbudgetterede],BudgetTracker[Måned],\"Maj\",BudgetTracker[Lejlighed],\"Fødselsdage\")","v":{"v":0,"d":"kr. 0"}},{"$f":"SUMIFS(BudgetTracker[Beløb\nbudgetterede],BudgetTracker[Måned],\"Maj\",BudgetTracker[Lejlighed],\"Helligdage\")","v":{"v":0,"d":"kr. 0"}},{"$f":"SUMIFS(BudgetTracker[Beløb\nbudgetterede],BudgetTracker[Måned],\"Maj\",BudgetTracker[Lejlighed],\"<>Helligdage\",BudgetTracker[Lejlighed],\"<>Fødselsdage\")","v":{"v":0,"d":"kr. 0"}},{"$f":"SUMIFS(BudgetTracker[Beløb\nbrugt],BudgetTracker[Måned],\"Maj\")","v":{"v":0,"d":"kr. 0"}}]
["Babyshowers",null,"Juni","Jun",{"$f":"SUMIFS(BudgetTracker[Beløb\nbudgetterede],BudgetTracker[Måned],\"Juni\",BudgetTracker[Lejlighed],\"Fødselsdage\")","v":{"v":50,"d":"kr. 50"}},{"$f":"SUMIFS(BudgetTracker[Beløb\nbudgetterede],BudgetTracker[Måned],\"Juni\",BudgetTracker[Lejlighed],\"Helligdage\")","v":{"v":0,"d":"kr. 0"}},{"$f":"SUMIFS(BudgetTracker[Beløb\nbudgetterede],BudgetTracker[Måned],\"Juni\",BudgetTracker[Lejlighed],\"<>Helligdage\",BudgetTracker[Lejlighed],\"<>Fødselsdage\")","v":{"v":100,"d":"kr. 100"}},{"$f":"SUMIFS(BudgetTracker[Beløb\nbrugt],BudgetTracker[Måned],\"Juni\")","v":{"v":180,"d":"kr. 180"}}]
["Dimensioner",null,"Juli","Jul",{"$f":"SUMIFS(BudgetTracker[Beløb\nbudgetterede],BudgetTracker[Måned],\"Juli\",BudgetTracker[Lejlighed],\"Fødselsdage\")","v":{"v":0,"d":"kr. 0"}},{"$f":"SUMIFS(BudgetTracker[Beløb\nbudgetterede],BudgetTracker[Måned],\"Juli\",BudgetTracker[Lejlighed],\"Helligdage\")","v":{"v":50,"d":"kr. 50"}},{"$f":"SUMIFS(BudgetTracker[Beløb\nbudgetterede],BudgetTracker[Måned],\"Juli\",BudgetTracker[Lejlighed],\"<>Helligdage\",BudgetTracker[Lejlighed],\"<>Fødselsdage\")","v":{"v":0,"d":"kr. 0"}},{"$f":"SUMIFS(BudgetTracker[Beløb\nbrugt],BudgetTracker[Måned],\"Juli\")","v":{"v":70,"d":"kr. 70"}}]
["Andet",null,"August","Aug",{"$f":"SUMIFS(BudgetTracker[Beløb\nbudgetterede],BudgetTracker[Måned],\"August\",BudgetTracker[Lejlighed],\"Fødselsdage\")","v":{"v":0,"d":"kr. 0"}},{"$f":"SUMIFS(BudgetTracker[Beløb\nbudgetterede],BudgetTracker[Måned],\"August\",BudgetTracker[Lejlighed],\"Helligdage\")","v":{"v":0,"d":"kr. 0"}},{"$f":"SUMIFS(BudgetTracker[Beløb\nbudgetterede],BudgetTracker[Måned],\"August\",BudgetTracker[Lejlighed],\"<>Helligdage\",BudgetTracker[Lejlighed],\"<>Fødselsdage\")","v":{"v":0,"d":"kr. 0"}},{"$f":"SUMIFS(BudgetTracker[Beløb\nbrugt],BudgetTracker[Måned],\"August\")","v":{"v":0,"d":"kr. 0"}}]
[null,null,"September","Sep",{"$f":"SUMIFS(BudgetTracker[Beløb\nbudgetterede],BudgetTracker[Måned],\"September\",BudgetTracker[Lejlighed],\"Fødselsdage\")","v":{"v":0,"d":"kr. 0"}},{"$f":"SUMIFS(BudgetTracker[Beløb\nbudgetterede],BudgetTracker[Måned],\"September\",BudgetTracker[Lejlighed],\"Helligdage\")","v":{"v":0,"d":"kr. 0"}},{"$f":"SUMIFS(BudgetTracker[Beløb\nbudgetterede],BudgetTracker[Måned],\"September\",BudgetTracker[Lejlighed],\"<>Helligdage\",BudgetTracker[Lejlighed],\"<>Fødselsdage\")","v":{"v":0,"d":"kr. 0"}},{"$f":"SUMIFS(BudgetTracker[Beløb\nbrugt],BudgetTracker[Måned],\"September\")","v":{"v":0,"d":"kr. 0"}}]
[null,null,"Oktober","Okt",{"$f":"SUMIFS(BudgetTracker[Beløb\nbudgetterede],BudgetTracker[Måned],\"Oktober\",BudgetTracker[Lejlighed],\"Fødselsdage\")","v":{"v":0,"d":"kr. 0"}},{"$f":"SUMIFS(BudgetTracker[Beløb\nbudgetterede],BudgetTracker[Måned],\"Oktober\",BudgetTracker[Lejlighed],\"Helligdage\")","v":{"v":0,"d":"kr. 0"}},{"$f":"SUMIFS(BudgetTracker[Beløb\nbudgetterede],BudgetTracker[Måned],\"Oktober\",BudgetTracker[Lejlighed],\"<>Helligdage\",BudgetTracker[Lejlighed],\"<>Fødselsdage\")","v":{"v":0,"d":"kr. 0"}},{"$f":"SUMIFS(BudgetTracker[Beløb\nbrugt],BudgetTracker[Måned],\"Oktober\")","v":{"v":0,"d":"kr. 0"}}]
[null,null,"November","Nov",{"$f":"SUMIFS(BudgetTracker[Beløb\nbudgetterede],BudgetTracker[Måned],\"November\",BudgetTracker[Lejlighed],\"Fødselsdage\")","v":{"v":0,"d":"kr. 0"}},{"$f":"SUMIFS(BudgetTracker[Beløb\nbudgetterede],BudgetTracker[Måned],\"November\",BudgetTracker[Lejlighed],\"Helligdage\")","v":{"v":0,"d":"kr. 0"}},{"$f":"SUMIFS(BudgetTracker[Beløb\nbudgetterede],BudgetTracker[Måned],\"November\",BudgetTracker[Lejlighed],\"<>Helligdage\",BudgetTracker[Lejlighed],\"<>Fødselsdage\")","v":{"v":0,"d":"kr. 0"}},{"$f":"SUMIFS(BudgetTracker[Beløb\nbrugt],BudgetTracker[Måned],\"November\")","v":{"v":0,"d":"kr. 0"}}]
[null,null,"December","Dec",{"$f":"SUMIFS(BudgetTracker[Beløb\nbudgetterede],BudgetTracker[Måned],\"December\",BudgetTracker[Lejlighed],\"Fødselsdage\")","v":{"v":0,"d":"kr. 0"}},{"$f":"SUMIFS(BudgetTracker[Beløb\nbudgetterede],BudgetTracker[Måned],\"December\",BudgetTracker[Lejlighed],\"Helligdage\")","v":{"v":0,"d":"kr. 0"}},{"$f":"SUMIFS(BudgetTracker[Beløb\nbudgetterede],BudgetTracker[Måned],\"December\",BudgetTracker[Lejlighed],\"<>Helligdage\",BudgetTracker[Lejlighed],\"<>Fødselsdage\")","v":{"v":0,"d":"kr. 0"}},{"$f":"SUMIFS(BudgetTracker[Beløb\nbrugt],BudgetTracker[Måned],\"December\")","v":{"v":0,"d":"kr. 0"}}]